lending/lending_fUSD_20241115
["ID","MTS","AMOUNT","RATE_DAILY","PERIOD"]
[342323128,1731711033501,-500.0,9.891e-05,2]
[342323129,1731711033510,-500.0,9.891e-05,2]
[342323130,1731711033520,-500.0,9.891e-05,2]
[342323131,1731711033530,-500.0,9.891e-05,2]
[342323132,1731711033540,-500.0,9.891e-05,2]
[342323133,1731711033549,-500.0,9.891e-05,2]
[342323134,1731711033559,-500.0,9.891e-05,2]
[342323135,1731711033569,-500.0,9.891e-05,2]
[342323136,1731711033579,-500.0,9.898e-05,2]
[342323137,1731711033589,-500.0,9.898e-05,2]
[342323138,1731711033599,-500.0,9.898e-05,2]
[342323139,1731711033608,-500.0,9.898e-05,2]
[342323140,1731711033618,-500.0,9.898e-05,2]
[342323141,1731711033628,-500.0,9.898e-05,2]
[342323142,1731711033637,-196.00445763,9.898e-05,2]
[342323143,1731711033647,-500.0,9.898e-05,2]
[342323144,1731711033656,-500.0,9.898e-05,2]
[342323145,1731711033666,-500.0,9.898e-05,2]
[342323146,1731711033676,-500.0,9.898e-05,2]
[342323147,1731711033685,-500.0,9.898e-05,2]
[342323148,1731711033694,-500.0,9.898e-05,2]
[342323149,1731711033704,-500.0,9.898e-05,2]
[342323150,1731711033714,-500.0,9.898e-05,2]
[342323151,1731711033726,-500.0,9.898e-05,2]
[342323152,1731711033736,-500.0,9.898e-05,2]
[342323153,1731711033746,-345.88,9.898e-05,2]
[342323154,1731711033755,-500.0,9.898e-05,2]
[342323155,1731711033766,-500.0,9.898e-05,2]
[342323156,1731711033776,-500.0,9.898e-05,2]
[342323157,1731711033785,-500.0,9.898e-05,2]
[342323158,1731711033795,-163.16,9.898e-05,2]
[342323159,1731711033805,-500.0,9.898e-05,2]
[342323160,1731711033816,-500.0,9.898e-05,2]
[342323161,1731711033826,-500.0,9.898e-05,2]
[342323162,1731711033836,-500.0,9.898e-05,2]
[342323163,1731711033847,-500.0,9.898e-05,2]
[342323164,1731711033857,-500.0,9.898e-05,2]
[342323165,1731711033868,-500.0,9.898e-05,2]
[342323166,1731711033879,-500.0,9.898e-05,2]
[342323167,1731711033890,-500.0,9.898e-05,2]
[342323168,1731711033901,-500.0,9.898e-05,2]
[342323169,1731711033912,-500.0,9.898e-05,2]
[342323170,1731711033924,-500.0,9.898e-05,2]
[342323171,1731711033936,-500.0,9.898e-05,2]
[342323172,1731711033947,-500.0,9.898e-05,2]
[342323173,1731711033959,-500.0,9.898e-05,2]
[342323174,1731711033975,-500.0,9.898e-05,2]
[342323175,1731711033987,-500.0,9.898e-05,2]
[342323176,1731711033998,-500.0,9.898e-05,2]
[342323177,1731711034008,-500.0,9.898e-05,2]
[342323178,1731711034018,-500.0,9.898e-05,2]
[342323179,1731711034028,-500.0,9.898e-05,2]
[342323180,1731711034039,-500.0,9.898e-05,2]
[342323181,1731711034049,-500.0,9.898e-05,2]
[342323182,1731711034060,-500.0,9.898e-05,2]
[342323183,1731711034070,-307.04,9.898e-05,2]
[342323184,1731711034080,-500.0,9.898e-05,2]
[342323185,1731711034090,-500.0,9.898e-05,2]
[342323186,1731711034100,-500.0,9.898e-05,2]
[342323187,1731711034110,-583.24,9.898e-05,2]
[342323188,1731711034121,-500.0,9.898e-05,2]
[342323189,1731711034131,-500.0,9.898e-05,2]
[342323190,1731711034141,-500.0,9.898e-05,2]
[342323191,1731711034152,-500.0,9.898e-05,2]
[342323192,1731711034162,-500.0,9.898e-05,2]
[342323193,1731711034173,-500.0,9.898e-05,2]
[342323194,1731711034183,-500.0,9.898e-05,2]
[342323195,1731711034194,-500.0,9.898e-05,2]
[342323196,1731711034205,-500.0,9.898e-05,2]
[342323197,1731711034215,-500.0,9.898e-05,2]
[342323198,1731711034230,-500.0,9.898e-05,2]
[342323199,1731711034240,-500.0,9.898e-05,2]
[342323200,1731711034251,-500.0,9.898e-05,2]
[342323201,1731711034262,-500.0,9.898e-05,2]
[342323202,1731711034272,-599.64,9.898e-05,2]
[342323203,1731711034282,-500.0,9.898e-05,2]
[342323204,1731711034292,-500.0,9.898e-05,2]
[342323205,1731711034302,-500.0,9.898e-05,2]
[342323206,1731711034312,-500.0,9.898e-05,2]
[342323207,1731711034324,-613.76,9.898e-05,2]
[342323208,1731711034337,-500.0,9.898e-05,2]
[342323209,1731711034347,-500.0,9.898e-05,2]
[342323210,1731711034356,-500.0,9.898e-05,2]
[342323211,1731711034366,-500.0,9.898e-05,2]
[342323212,1731711034377,-500.0,9.898e-05,2]
[342323213,1731711034387,-500.0,9.898e-05,2]
[342323214,1731711034397,-500.0,9.898e-05,2]
[342323215,1731711034407,-500.0,9.898e-05,2]
[342323216,1731711034418,-360.68,9.898e-05,2]
[342323217,1731711034429,-500.0,9.898e-05,2]
[342323218,1731711034439,-500.0,9.898e-05,2]
[342323219,1731711034450,-500.0,9.898e-05,2]
[342323220,1731711034461,-367.4,9.898e-05,2]
[342323221,1731711034476,-500.0,9.898e-05,2]
[342323222,1731711034487,-500.0,9.898e-05,2]
[342323223,1731711034498,-500.0,9.898e-05,2]
[342323224,1731711034509,-500.0,9.898e-05,2]
[342323225,1731711034519,-372.21715642,9.898e-05,2]
[342323226,1731711034530,-500.0,9.898e-05,2]
[342323227,1731711034541,-500.0,9.898e-05,2]
[342323228,1731711034552,-500.0,9.898e-05,2]
[342323229,1731711034563,-500.0,9.898e-05,2]
[342323230,1731711034573,-500.0,9.898e-05,2]
[342323231,1731711034584,-500.0,9.898e-05,2]
[342323232,1731711034594,-500.0,9.898e-05,2]
[342323233,1731711034604,-169.04347398,9.898e-05,2]
[342323234,1731711034619,-330.95652602,9.898e-05,2]
[342323235,1731711034630,-500.0,9.898e-05,2]
[342323236,1731711034640,-500.0,9.898e-05,2]
[342323237,1731711034650,-281.68,9.898e-05,2]
[342323238,1731711034660,-500.0,9.898e-05,2]
[342323239,1731711034670,-500.0,9.898e-05,2]
[342323240,1731711034679,-500.0,9.898e-05,2]
[342323241,1731711034689,-500.0,9.898e-05,2]
[342323242,1731711034699,-500.0,9.898e-05,2]
[342323243,1731711034708,-510.96,9.898e-05,2]
[342323244,1731711034718,-500.0,9.898e-05,2]
[342323245,1731711034735,-351.24,9.898e-05,2]
[342323246,1731711034745,-500.0,9.898e-05,2]
[342323247,1731711034755,-500.0,9.898e-05,2]
[342323248,1731711034765,-401.32,9.898e-05,2]
[342323249,1731711034774,-500.0,9.898e-05,2]
[342323250,1731711034784,-500.0,9.898e-05,2]
[342323251,1731711034794,-612.19,9.898e-05,2]
[342323252,1731711034804,-500.0,9.898e-05,2]
[342323253,1731711034813,-500.0,9.898e-05,2]
[342323254,1731711034822,-500.0,9.898e-05,2]
[342323255,1731711034832,-500.0,9.898e-05,2]
[342323256,1731711034842,-500.0,9.898e-05,2]
[342323257,1731711034851,-500.0,9.898e-05,2]
[342323258,1731711034861,-500.0,9.898e-05,2]
[342323259,1731711034871,-232.47,9.898e-05,2]
[342323260,1731711034882,-500.0,9.898e-05,2]
[342323261,1731711034892,-360.27,9.898e-05,2]
[342323262,1731711034902,-500.0,9.898e-05,2]
[342323263,1731711034912,-500.0,9.898e-05,2]
[342323264,1731711034922,-500.0,9.898e-05,2]
[342323265,1731711034932,-500.0,9.898e-05,2]
[342323266,1731711034942,-500.0,9.898e-05,2]
[342323267,1731711034953,-500.0,9.898e-05,2]
[342323268,1731711034962,-396.52,9.898e-05,2]
[342323269,1731711034972,-500.0,9.898e-05,2]
[342323270,1731711034983,-522.62,9.898e-05,2]
[342323271,1731711034993,-607.61,9.898e-05,2]
[342323272,1731711035003,-500.0,9.898e-05,2]
[342323273,1731711035013,-500.0,9.898e-05,2]
[342323274,1731711035023,-500.0,9.898e-05,2]
[342323275,1731711035033,-500.0,9.898e-05,2]
[342323276,1731711035044,-428.25,9.898e-05,2]
[342323277,1731711035054,-500.0,9.898e-05,2]
[342323278,1731711035064,-500.0,9.898e-05,2]
[342323279,1731711035074,-500.0,9.898e-05,2]
[342323280,1731711035083,-456.94,9.898e-05,2]
[342323281,1731711035093,-500.0,9.898e-05,2]
[342323282,1731711035102,-500.0,9.898e-05,2]
[342323283,1731711035111,-500.0,9.898e-05,2]
[342323284,1731711035121,-500.0,9.898e-05,2]
[342323285,1731711035131,-500.0,9.898e-05,2]
[342323286,1731711035141,-415.02,9.898e-05,2]
[342323287,1731711035150,-1651.82,9.899e-05,2]
[342323288,1731711035160,-179.735,9.899e-05,2]
[342323289,1731711035170,-1000.0,9.9e-05,2]
[342323290,1731711035179,-1000.0,9.9e-05,2]
[342323291,1731711035189,-150.243,9.914e-05,2]
[342323292,1731711035199,-156.181,9.914e-05,2]
[342323293,1731711035209,-263.154,9.914e-05,2]
[342323294,1731711035220,-500.0,9.92e-05,2]
[342323295,1731711035238,-500.0,9.973e-05,2]
[342323296,1731711035247,-500.0,9.973e-05,2]
[342323297,1731711035259,-500.0,9.973e-05,2]
[342323298,1731711035268,-500.0,9.979e-05,2]
[342323299,1731711035277,-500.0,9.979e-05,2]
[342323300,1731711035287,-559.28,9.982e-05,2]
[342323301,1731711035296,-367.64,9.982e-05,2]
[342323302,1731711035306,-500.0,9.996e-05,2]
[342323303,1731711035315,-589.42,9.996e-05,2]
[342323304,1731711035327,-500.0,9.996e-05,2]
[342323305,1731711035338,-500.0,9.996e-05,2]
[342323306,1731711035347,-538.13194013,9.996e-05,2]
[342323307,1731711035357,-500.0,9.996e-05,2]
[342323308,1731711035368,-500.0,9.996e-05,2]
[342323309,1731711035378,-500.0,9.997e-05,2]
[342323310,1731711035388,-500.0,9.997e-05,2]
[342323311,1731711035398,-500.0,9.997e-05,2]
[342323312,1731711035409,-500.0,9.997e-05,2]
[342323313,1731711035419,-500.0,9.997e-05,2]
[342323314,1731711035428,-500.0,9.997e-05,2]
[342323315,1731711035438,-500.0,9.997e-05,2]
[342323316,1731711035448,-500.0,9.997e-05,2]
[342323317,1731711035457,-500.0,9.997e-05,2]
[342323318,1731711035467,-500.0,9.997e-05,2]
[342323319,1731711035476,-500.0,9.997e-05,2]
[342323320,1731711035486,-314.68,9.997e-05,2]
[342323321,1731711035496,-500.0,9.997e-05,2]
[342323322,1731711035505,-500.0,9.997e-05,2]
[342323323,1731711035515,-500.0,9.997e-05,2]
[342323324,1731711035525,-500.0,9.997e-05,2]
[342323325,1731711035534,-306.2,9.997e-05,2]
[342323326,1731711035544,-589.42,9.997e-05,2]
[342323327,1731711035554,-589.42,9.997e-05,2]
[342323328,1731711035563,-394.73864616,9.997e-05,2]
[342323329,1731711035580,-194.68135384,9.997e-05,2]
[342323330,1731711035590,-589.42,9.997e-05,2]
[342323331,1731711035599,-589.42,9.997e-05,2]
[342323332,1731711035608,-494.51864616,9.997e-05,2]
[342323337,1731711038209,-94.90135384,9.997e-05,2]
[342323338,1731711038219,-378.34196828,9.997e-05,2]
[342323339,1731711038230,-211.07803172,9.997e-05,2]
[342323340,1731711038240,-589.42,9.997e-05,2]
[342323342,1731711038249,-589.42,9.997e-05,2]
[342323343,1731711038259,-589.42,9.997e-05,2]
[342323344,1731711038267,-589.42,9.997e-05,2]
[342323345,1731711038277,-500.0,9.997e-05,2]
[342323346,1731711038287,-589.42,9.997e-05,2]
[342323347,1731711038296,-500.0,9.997e-05,2]
[342323348,1731711038305,-589.42,9.997e-05,2]
[342323349,1731711038315,-589.42,9.997e-05,2]
[342323350,1731711038326,-500.0,9.997e-05,2]
[342323351,1731711038339,-589.42,9.997e-05,2]
[342323352,1731711038348,-500.0,9.997e-05,2]
[342323353,1731711038358,-589.42,9.997e-05,2]
[342323354,1731711038367,-500.0,9.997e-05,2]
[342323355,1731711038377,-589.42,9.997e-05,2]
[342323356,1731711038387,-500.0,9.997e-05,2]
[342323357,1731711038396,-589.42,9.997e-05,2]
[342323358,1731711038406,-500.0,9.997e-05,2]
[342323359,1731711038416,-500.0,9.997e-05,2]
[342323360,1731711038425,-405.16555735,9.997e-05,2]
[342323361,1731711038437,-48.93444265,9.997e-05,2]
[342323362,1731711038446,-500.0,9.997e-05,2]
[342323363,1731711038455,-500.0,9.997e-05,2]
[342323364,1731711038464,-500.0,9.997e-05,2]
[342323365,1731711038473,-500.0,9.997e-05,2]
[342323366,1731711038484,-500.0,9.997e-05,2]
[342323367,1731711038493,-500.0,9.997e-05,2]
[342323368,1731711038503,-500.0,9.997e-05,2]
[342323369,1731711038513,-500.0,9.997e-05,2]
[342323370,1731711038523,-500.0,9.997e-05,2]
[342323371,1731711038532,-500.0,9.997e-05,2]
[342323372,1731711038541,-500.0,9.997e-05,2]
[342323373,1731711038551,-647.2,9.997e-05,2]
[342323374,1731711038561,-500.0,9.997e-05,2]
[342323375,1731711038570,-500.0,9.997e-05,2]
[342323376,1731711038580,-500.0,9.997e-05,2]
[342323377,1731711038589,-500.0,9.997e-05,2]
[342323378,1731711038598,-500.0,9.997e-05,2]
[342323379,1731711038608,-500.0,9.997e-05,2]
[342323380,1731711038618,-500.0,9.997e-05,2]
[342323381,1731711038628,-535.5,9.997e-05,2]
[342323382,1731711038638,-500.0,9.997e-05,2]
[342323383,1731711038647,-500.0,9.997e-05,2]
[342323384,1731711038658,-500.0,9.997e-05,2]
[342323385,1731711038667,-500.0,9.997e-05,2]
[342323386,1731711038678,-500.0,9.997e-05,2]
[342323387,1731711038687,-500.0,9.997e-05,2]
[342323388,1731711038696,-500.0,9.997e-05,2]
[342323389,1731711038705,-500.0,9.997e-05,2]
[342323390,1731711038715,-500.0,9.997e-05,2]
[342323391,1731711038726,-500.0,9.997e-05,2]
[342323392,1731711038737,-500.0,9.997e-05,2]
[342323393,1731711038747,-500.0,9.997e-05,2]
[342323394,1731711038757,-500.0,9.997e-05,2]
[342323395,1731711038767,-500.0,9.997e-05,2]
[342323396,1731711038776,-500.0,9.997e-05,2]
[342323397,1731711038786,-500.0,9.997e-05,2]
[342323398,1731711038795,-500.0,9.997e-05,2]
[342323399,1731711038804,-500.0,9.997e-05,2]
[342323400,1731711038813,-500.0,9.997e-05,2]
[342323401,1731711038823,-500.0,9.997e-05,2]
[342323402,1731711038832,-500.0,9.997e-05,2]
[342323403,1731711038841,-307.64173524,9.997e-05,2]
[342323404,1731711038850,-500.0,9.997e-05,2]
[342323405,1731711038859,-500.0,9.997e-05,2]
[342323406,1731711038868,-500.0,9.997e-05,2]
[342323407,1731711038877,-500.0,9.997e-05,2]
[342323408,1731711038886,-500.0,9.997e-05,2]
[342323409,1731711038895,-336.35,9.997e-05,2]
[342323410,1731711038905,-500.0,9.997e-05,2]
[342323411,1731711038914,-500.0,9.997e-05,2]
[342323412,1731711038924,-500.0,9.997e-05,2]
[342323413,1731711038933,-581.92,9.997e-05,2]
[342323414,1731711038943,-500.0,9.997e-05,2]
[342323415,1731711038952,-524.28935268,9.997e-05,2]
[342323416,1731711038961,-500.0,9.997e-05,2]
[342323417,1731711038971,-500.0,9.997e-05,2]
[342323418,1731711038989,-500.0,9.997e-05,2]
[342323419,1731711038999,-500.0,9.997e-05,2]
[342323420,1731711039009,-539.35,9.997e-05,2]
[342323421,1731711039018,-62604.77430845,9.998e-05,2]
[342323422,1731711039042,-645.01016873,9.998e-05,2]
[342323423,1731711039074,-150.0,9.914e-05,2]
[342323424,1731711039084,-41659.69464004,9.998e-05,2]
[342323425,1731711039096,-1461.48105899,9.998e-05,2]
[342323427,1731711040223,-3934.98273757,9.998e-05,2]
[342323428,1731711040235,-280.29890735,9.998e-05,2]
[342323429,1731711040459,-40535.44543927,9.998e-05,2]
[342323430,1731711040606,-751.40285501,9.998e-05,2]
[342323431,1731711040619,-7977.99582239,9.998e-05,2]
[342323432,1731711040631,-2125.44338378,9.998e-05,2]
[342323434,1731711043219,-8939.50928495,9.998e-05,2]
[342323435,1731711043246,-6622.31642043,9.998e-05,2]
[342323436,1731711043358,-346190.84080587,9.998e-05,2]
[342323437,1731711043464,-3109.89999999,9.998e-05,2]
[342323438,1731711043475,-1685.8909494,9.998e-05,2]
[342323439,1731711043491,-1955.43025,9.998e-05,2]
[342323440,1731711043502,-560.43253315,9.998e-05,2]
[342323448,1731711046214,-439.11648971,9.998e-05,2]
[342323449,1731711046331,-732.62197604,9.998e-05,2]
[342323450,1731711046364,-82017.89999999,9.998e-05,2]
[342323451,1731711046393,-320.95454904,9.998e-05,2]
[342323452,1731711046503,-338.64597115,9.998e-05,2]
[342323453,1731711046514,-506.83992457,9.998e-05,2]
[342323454,1731711046616,-1805.7375,9.998e-05,2]
[342323461,1731711105380,1046.93,8.219e-05,2]
[342323463,1731711255134,50000.0,0.00025,60]
[342323464,1731711360806,55501.0,0.00025,60]
[342323465,1731711454675,157.275,0.000125,60]
[342323466,1731711455186,157.703,0.00013,60]
[342323468,1731712180847,994.58,8.219e-05,2]
[342323474,1731712232396,-654.08393192,8.778e-05,2]
[342323475,1731712232408,-345.91606808,8.778e-05,2]
[342323476,1731712232417,-5.98393092,8.796e-05,2]
[342323477,1731712232575,-354.74606908,8.796e-05,2]
[342323478,1731712232585,-300.0,8.797e-05,2]
[342323479,1731712232594,-567.04215601,8.798e-05,2]
[342323480,1731712232605,-23322.95784399,8.798e-05,2]
[342323481,1731712232615,-250.0,8.832e-05,2]
[342323482,1731712232626,-250.0,8.838e-05,2]
[342323483,1731712232636,-200.0,8.953e-05,2]
[342323484,1731712232645,-17953.16083232,9e-05,2]
[342323485,1731712232654,-980.29,9.024e-05,2]
[342323486,1731712232665,-439.27,9.13e-05,2]
[342323487,1731712232674,-595.91,9.218e-05,2]
[342323488,1731712232684,-158.77,9.396e-05,2]
[342323489,1731712232694,-158.77,9.412e-05,2]
[342323490,1731712232703,-158.77,9.427e-05,2]
[342323491,1731712232713,-158.77,9.443e-05,2]
[342323492,1731712232724,-359.24624532,9.6e-05,2]
[342323493,1731712232734,-1101.0,9.6e-05,2]
[342323494,1731712232743,-150.0,9.669e-05,2]
[342323495,1731712232752,-1382.34,9.67e-05,2]
[342323496,1731712232763,-999.99,9.67e-05,2]
[342323497,1731712232772,-3628.5,9.67e-05,2]
[342323498,1731712232782,-420.0,9.676e-05,2]
[342323499,1731712232793,-1083.18663508,9.798e-05,2]
[342323500,1731712232805,-4629.0973,9.798e-05,2]
[342323501,1731712232815,-272.6068,9.798e-05,2]
[342323502,1731712232824,-1000.0,9.875e-05,2]
[342323504,1731712232833,-87348.23523771,9.88e-05,2]
[342323506,1731712232842,-360.73,9.896e-05,2]
[342323507,1731712232851,-816.3642,9.898e-05,2]
[342323508,1731712232862,-1873.501,9.92e-05,2]
[342323509,1731712232871,-182.144,9.92e-05,2]
[342323510,1731712232881,-496.0,9.955e-05,2]
[342323511,1731712232891,-505.7186148,9.973e-05,2]
[342323512,1731712232899,-500.0,9.973e-05,2]
[342323513,1731712232909,-20286.57066928,9.997e-05,2]
[342323514,1731712232919,-500.0,9.997e-05,2]
[342323515,1731712232929,-168.5089992,9.997e-05,2]
[342323516,1731712232940,-500.0,9.997e-05,2]
[342323517,1731712232950,-500.0,9.997e-05,2]
[342323518,1731712232959,-500.0,9.997e-05,2]
[342323519,1731712232969,-500.0,9.997e-05,2]
[342323522,1731712233223,-500.0,9.997e-05,2]
[342323523,1731712233234,-500.0,9.997e-05,2]
[342323524,1731712233244,-500.0,9.997e-05,2]
[342323525,1731712233254,-500.0,9.997e-05,2]
[342323526,1731712233264,-500.0,9.997e-05,2]
[342323527,1731712233273,-500.0,9.997e-05,2]
[342323528,1731712233283,-309.88778225,9.997e-05,2]
[342323529,1731712233294,-500.0,9.997e-05,2]
[342323530,1731712233304,-500.0,9.997e-05,2]
[342323531,1731712233314,-500.0,9.997e-05,2]
[342323532,1731712233324,-500.0,9.997e-05,2]
[342323533,1731712233334,-500.0,9.997e-05,2]
[342323534,1731712233344,-500.0,9.997e-05,2]
[342323535,1731712233354,-500.0,9.997e-05,2]
[342323536,1731712233363,-500.0,9.997e-05,2]
[342323537,1731712233373,-500.0,9.997e-05,2]
[342323538,1731712233382,-500.0,9.997e-05,2]
[342323539,1731712233392,-500.0,9.997e-05,2]
[342323540,1731712233402,-500.0,9.997e-05,2]
[342323541,1731712233412,-500.0,9.997e-05,2]
[342323542,1731712233422,-500.0,9.997e-05,2]
[342323543,1731712233431,-500.0,9.997e-05,2]
[342323544,1731712233444,-500.0,9.997e-05,2]
[342323545,1731712233454,-500.0,9.997e-05,2]
[342323546,1731712233464,-500.0,9.997e-05,2]
[342323547,1731712233474,-500.0,9.997e-05,2]
[342323548,1731712233484,-500.0,9.997e-05,2]
[342323549,1731712233493,-194.59,9.997e-05,2]
[342323550,1731712233503,-500.0,9.997e-05,2]
[342323551,1731712233513,-500.0,9.997e-05,2]
[342323552,1731712233523,-500.0,9.997e-05,2]
[342323553,1731712233532,-500.0,9.997e-05,2]
[342323554,1731712233542,-500.0,9.997e-05,2]
[342323555,1731712233551,-500.0,9.997e-05,2]
[342323556,1731712233560,-500.0,9.997e-05,2]
[342323557,1731712233569,-500.0,9.997e-05,2]
[342323558,1731712233579,-500.0,9.997e-05,2]
[342323559,1731712233588,-500.0,9.997e-05,2]
[342323560,1731712233598,-500.0,9.997e-05,2]
[342323561,1731712233607,-500.0,9.997e-05,2]
[342323562,1731712233617,-500.0,9.997e-05,2]
[342323563,1731712233627,-500.0,9.997e-05,2]
[342323564,1731712233637,-447.27,9.997e-05,2]
[342323565,1731712233647,-145517.53949292,9.998e-05,2]
[342323566,1731712233671,-1800.0,9.998e-05,2]
[342323567,1731712233682,-741.6806901,9.998e-05,2]
[342323568,1731712233706,-2299.76847704,9.998e-05,2]
[342323569,1731712233718,-369.0,9.998e-05,2]
[342323570,1731712238397,-2322.0744563,9.998e-05,2]
[342323572,1731712238409,-2389.45216104,9.998e-05,2]
[342323573,1731712238460,-3533.18595938,9.998e-05,2]
[342323574,1731712238471,-1826.01,9.998e-05,2]
[342323575,1731712238522,-1800.83630289,9.998e-05,2]
[342323576,1731712238534,-720.62291816,9.998e-05,2]
[342323582,1731712240297,-20845.51190874,9.998e-05,2]
[342323583,1731712240400,-1238.6,9.998e-05,2]
[342323584,1731712240412,-3126.70614937,9.998e-05,2]
[342323585,1731712240482,-1185.49327801,9.998e-05,2]
[342323586,1731712240493,-429.04175051,9.998e-05,2]
[342323587,1731712240504,-472.02580349,9.998e-05,2]
[342323588,1731712240516,-311.89834201,9.998e-05,2]
[342323589,1731712240568,-4185.0723924,9.998e-05,2]
[342323602,1731712243439,-4648.03564292,9.998e-05,2]
[342323604,1731712243619,-4326.5,9.998e-05,2]
[342323605,1731712243679,-381.56194014,9.998e-05,2]
[342323606,1731712243740,-2595.64130715,9.998e-05,2]
[342323607,1731712243751,-6094.92383797,9.998e-05,2]
[342323608,1731712243762,-4073.29143046,9.998e-05,2]
[342323609,1731712243774,-889.04804456,9.998e-05,2]
[342323610,1731712243785,-670.41728119,9.998e-05,2]
[342323611,1731712243796,-7878.21403495,9.998e-05,2]
[342323613,1731712243809,-5271.79103063,9.998e-05,2]
[342323615,1731712243822,-8986.29747749,9.998e-05,2]
[342323616,1731712243833,-8433.72363949,9.998e-05,2]
[342323628,1731712246487,-7172.01447822,9.998e-05,2]
[342323629,1731712246499,-1067.29402462,9.998e-05,2]
[342323630,1731712246512,-868.68,9.998e-05,2]
[342323631,1731712246523,-4470.73122401,9.998e-05,2]
[342323632,1731712246669,-449.884675,9.998e-05,2]
[342323633,1731712246682,-1353.84,9.998e-05,2]
[342323635,1731712354292,1160.39,1e-05,2]
[342323636,1731712389033,159.64,7.038e-05,2]
[342323648,1731712852628,-1281.67,0.00016658,30]
[342323649,1731712852667,-1281.67,0.00019242,30]
[342323650,1731712852698,-1552.47499034,0.0002,30]
[342323651,1731712852728,-500.0,0.0002075,30]
[342323652,1731712852752,-500.0,0.0002075,30]
[342323653,1731712852777,-500.0,0.0002075,30]
[342323654,1731712852803,-500.0,0.0002075,30]
[342323655,1731712852828,-500.0,0.0002075,30]
[342323656,1731712852853,-500.0,0.0002075,30]
[342323657,1731712852877,-500.0,0.0002075,30]
[342323658,1731712852903,-285.97210944,0.0002075,30]
[342323659,1731712852935,-1281.67,0.00021826,30]
[342323660,1731712852970,-530.42,0.00021917,30]
[342323661,1731712852997,-530.42,0.00021917,30]
[342323662,1731712853021,-530.42,0.00021917,30]
[342323663,1731712853046,-530.42,0.00021917,30]
[342323664,1731712853072,-530.42,0.00021917,30]
[342323665,1731712853096,-530.42,0.00021917,30]
[342323666,1731712853120,-530.42,0.00021917,30]
[342323667,1731712853144,-530.42,0.00021917,30]
[342323668,1731712853169,-530.42,0.00021917,30]
[342323669,1731712853196,-530.42,0.00021917,30]
[342323670,1731712853220,-530.42,0.00021917,30]
[342323671,1731712853244,-530.42,0.00021917,30]
[342323672,1731712853268,-530.42,0.00021917,30]
[342323673,1731712853292,-530.42,0.00021917,30]
[342323674,1731712853316,-530.42,0.00021917,30]
[342323675,1731712853340,-530.42,0.00021917,30]
[342323676,1731712853364,-530.42,0.00021917,30]
[342323677,1731712853387,-530.42,0.00021917,30]
[342323678,1731712853411,-530.42,0.00021917,30]
[342323679,1731712853447,-530.42,0.00021917,30]
[342323680,1731712853472,-530.42,0.00021917,30]
[342323681,1731712853497,-530.42,0.00021917,30]
[342323682,1731712853522,-530.42,0.00021917,30]
[342323683,1731712853547,-530.65935676,0.00021917,30]
[342323684,1731712853575,-500.0,0.0002275,30]
[342323685,1731712853599,-500.0,0.0002275,30]
[342323686,1731712853623,-500.0,0.0002275,30]
[342323687,1731712853647,-500.0,0.0002275,30]
[342323688,1731712853671,-500.0,0.0002275,30]
[342323689,1731712853697,-500.0,0.0002275,30]
[342323690,1731712853920,-500.0,0.0002275,30]
[342323691,1731712853947,-500.0,0.0002275,30]
[342323692,1731712853973,-500.0,0.0002275,30]
[342323693,1731712853999,-576.54029764,0.0002275,30]
[342323694,1731712854026,-847.38415083,0.00024,30]
[342323695,1731712854049,-2943.12279248,0.00024,30]
[342323696,1731712854075,-1281.67,0.0002441,30]
[342323697,1731712854105,-50000.0,0.00025,30]
[342323698,1731712854130,-500.0,0.00025,30]
[342323699,1731712854154,-500.0,0.00025,30]
[342323700,1731712854178,-500.0,0.00025,30]
[342323701,1731712854206,-500.0,0.00025,30]
[342323702,1731712854231,-500.0,0.00025,30]